fUSD/lending_fUSD_20250216
["ID","MTS","AMOUNT","RATE_DAILY","PERIOD"]
[353234195,1739693465210,-258.340451,0.00010958,2]
[353234196,1739693465221,-47.86956208,0.00010958,2]
[353234197,1739693465232,-452.13043792,0.00010958,2]
[353234198,1739693465241,-500.0,0.00010999,2]
[353234199,1739693465250,-440.1,0.00011024,2]
[353234200,1739693465262,-500.0,0.00011037,2]
[353234201,1739693465271,-500.0,0.00011039,2]
[353234202,1739693465281,-500.0,0.0001104,2]
[353234203,1739693465290,-500.0,0.00011041,2]
[353234204,1739693465301,-500.0,0.00011098,2]
[353234205,1739693465310,-500.0,0.00011098,2]
[353234206,1739693465319,-1478.12072265,0.00011099,2]
[353234207,1739693465331,-5165.6685289,0.00011099,2]
[353234208,1739693465343,-987.17048649,0.00011099,2]
[353234209,1739693465355,-558.34060364,0.00011099,2]
[353234210,1739693465374,-2354.84966965,0.00011099,2]
[353234211,1739693465387,-27741.70919431,0.00011099,2]
[353234212,1739693465397,-500.0,0.00011122,2]
[353234213,1739693465407,-500.0,0.00011122,2]
[353234214,1739693465417,-500.0,0.00011204,2]
[353234215,1739693465426,-41.48337463,0.00011286,2]
[353234216,1739693465438,-458.51662537,0.00011286,2]
[353234217,1739693465448,-7.52473396,0.00011287,2]
[353234218,1739693465460,-131.35689669,0.00011287,2]
[353234219,1739693465470,-1025.81,0.00011287,2]
[353234220,1739693465479,-1497.94116228,0.00011287,2]
[353234225,1739693816944,30005.20230062,0.000113,15]
[353234226,1739693953714,642.0,0.0002,120]
[353234227,1739694116676,222.72,0.0002,120]
[353234237,1739694632257,-387.645,8.973e-05,2]
[353234241,1739694632420,-442.19268965,8.973e-05,2]
[353234242,1739694632431,-475.49962009,8.973e-05,2]
[353234243,1739694632479,-5100.0,8.973e-05,2]
[353234244,1739694632491,-1407.80069026,8.973e-05,2]
[353234245,1739694632501,-200.0,9.04e-05,2]
[353234246,1739694632511,-300.0,9.107e-05,2]
[353234247,1739694632521,-48.02882621,9.108e-05,2]
[353234248,1739694632534,-132.42657356,9.108e-05,2]
[353234249,1739694632543,-250.0,9.254e-05,2]
[353234250,1739694632552,-608.57799581,9.322e-05,2]
[353234251,1739694632564,-815.46,9.322e-05,2]
[353234252,1739694632583,-797.39022925,9.322e-05,2]
[353234253,1739694632595,-1958.84862141,9.322e-05,2]
[353234254,1739694632606,-1850.45,9.322e-05,2]
[353234255,1739694632622,-960.850298,9.322e-05,2]
[353234256,1739694632634,-406.88,9.322e-05,2]
[353234257,1739694632645,-16501.54285553,9.322e-05,2]
[353234258,1739694632655,-2851.91,9.358e-05,2]
[353234259,1739694632665,-684.79,9.378e-05,2]
[353234260,1739694632676,-727.68,9.519e-05,2]
[353234261,1739694632689,-2758.35,9.616e-05,2]
[353234262,1739694632699,-503.25,9.692e-05,2]
[353234263,1739694632709,-1000.0,9.703e-05,2]
[353234264,1739694632720,-4295.52,9.721e-05,2]
[353234265,1739694632730,-623.26137098,9.748e-05,2]
[353234266,1739694632740,-500.0,9.765e-05,2]
[353234267,1739694632750,-180.29,9.844e-05,2]
[353234268,1739694632759,-200.0,9.87e-05,2]
[353234269,1739694632769,-200.0,9.87e-05,2]
[353234270,1739694632780,-150.0,9.999e-05,2]
[353234271,1739694632789,-1584.78697952,0.0001,2]
[353234272,1739694632801,-25752.55502778,0.0001,2]
[353234273,1739694632823,-1243.56644107,0.0001,2]
[353234274,1739694632833,-815.2855,0.0001,2]
[353234325,1739694638386,-387.3,9.703e-05,2]
[353234326,1739694638398,-313.01479968,9.703e-05,2]
[353234327,1739694638409,-1233.00030508,0.0001,2]
[353234328,1739694638443,-11895054.8981581,0.0001,2]
[353234329,1739694638549,-41258.2470083,0.0001,2]
[353234515,1739694640386,-1097.06573776,9.041e-05,2]
[353234517,1739694640394,-954.35713764,0.0001,2]
[353234519,1739694640405,-1460.4311908,0.0001,2]
[353234524,1739694640440,-4864.221952,0.0001,2]
[353234552,1739694640706,-2173.19498958,0.0001,2]
[353234702,1739694643438,-4346.7909,0.0001,2]
[353234704,1739694646281,-491.90865646,0.0001,2]
[353234705,1739694646389,-768747.04250356,0.0001,2]
[353234706,1739694646739,-30161.6826187,0.0001,2]
[353234707,1739694646750,-833.63042011,0.0001,2]
[353234708,1739694646769,-730.69366885,0.0001,2]
[353234709,1739694777406,694.94,8.219e-05,2]
[353234711,1739695527159,500.0,0.0002,120]
[353234713,1739695667629,1305.06,8.842e-05,2]
[353234714,1739695758239,500.0,0.0002,120]
[353234723,1739695831504,-22594.94,8.842e-05,2]
[353234724,1739695831515,-200.0,8.85e-05,2]
[353234725,1739695831524,-250.0,8.859e-05,2]
[353234726,1739695831533,-200.0,8.946e-05,2]
[353234727,1739695831542,-150.0,9e-05,2]
[353234728,1739695831551,-150.0,9e-05,2]
[353234729,1739695831560,-200.0,9.014e-05,2]
[353234730,1739695831569,-1000.0,9.096e-05,2]
[353234731,1739695831578,-386.54033294,9.102e-05,2]
[353234732,1739695831587,-414.65,9.109e-05,2]
[353234733,1739695831596,-441.18,9.19e-05,2]
[353234734,1739695831605,-370.24,9.3e-05,2]
[353234735,1739695831614,-440.1,9.3e-05,2]
[353234736,1739695831623,-150.0,9.37e-05,2]
[353234737,1739695831632,-583.97,9.408e-05,2]
[353234738,1739695831641,-386.54033294,9.551e-05,2]
[353234739,1739695831650,-999.37,9.578e-05,2]
[353234740,1739695831659,-150.0,9.578e-05,2]
[353234741,1739695831668,-376.4,9.578e-05,2]
[353234742,1739695831678,-1500.0,9.677e-05,2]
[353234743,1739695831689,-440.1,9.7e-05,2]
[353234744,1739695831699,-300.0,9.7e-05,3]
[353234745,1739695831709,-200.0,9.726e-05,2]
[353234746,1739695831719,-190.43,9.778e-05,2]
[353234747,1739695831728,-359.23,9.778e-05,2]
[353234748,1739695831736,-150.0,9.778e-05,2]
[353234749,1739695831745,-1520.002,9.8e-05,2]
[353234750,1739695831755,-700.0,9.8e-05,3]
[353234751,1739695831765,-1100.0,9.9e-05,3]
[353234752,1739695831774,-521.15423475,9.927e-05,2]
[353234753,1739695831784,-521.15423475,9.977e-05,2]
[353234754,1739695831793,-521.15423475,9.982e-05,2]
[353234755,1739695831802,-2002.4,9.99e-05,2]
[353234756,1739695831811,-521.15423475,9.995e-05,2]
[353234757,1739695831821,-690.22670659,9.999e-05,2]
[353234758,1739695831830,-1167.87,9.999e-05,2]
[353234759,1739695831841,-150.0,9.999e-05,2]
[353234760,1739695831851,-500.0,9.999e-05,2]
[353234761,1739695831861,-500.0,9.999e-05,2]
[353234762,1739695831871,-277.15184046,9.999e-05,2]
[353234763,1739695831880,-8320.58445881,0.0001,2]
[353234830,1739695832369,-1857.02722869,0.0001,2]
[353234833,1739695832387,-976.1689893,0.0001,2]
[353234835,1739695832398,-10545.82882836,0.0001,2]
[353234837,1739695832409,-492.18846894,0.0001,2]
[353234839,1739695832420,-6858.11034324,0.0001,2]
[353234841,1739695832432,-2037.32074556,0.0001,2]
[353234852,1739695832527,-722.54233573,0.0001,2]
[353235327,1739695837381,-4268.74076009,0.0001,2]
[353235329,1739695837393,-21458.39388693,0.0001,2]
[353235334,1739695837434,-31344.0,0.0001,2]
[353235342,1739695837548,-994.77397436,0.0001,2]
[353235343,1739695837560,-1079.89781215,0.0001,2]
[353235344,1739695837572,-1014.55504234,0.0001,2]
[353235347,1739695837594,-10807.95111928,0.0001,2]
[353235350,1739695837605,-114478.73302573,0.0001,2]
[353235355,1739695837648,-95876.580086,0.0001,2]
[353235487,1739695839591,-3476.04207273,0.0001,2]
[353235488,1739695839602,-11191.24978697,0.0001,2]
[353235489,1739695839613,-6837.268787,0.0001,2]
[353235490,1739695839624,-2002.04100461,0.0001,2]
[353235491,1739695839635,-1121.02813651,0.0001,2]
[353235492,1739695839645,-624.79062538,0.0001,2]
[353235493,1739695839657,-974.36,0.0001,2]
[353235494,1739695839669,-305.25925657,0.0001,2]
[353235495,1739695839680,-497.38824129,0.0001,2]
[353235496,1739695839704,-25048.90968962,0.0001,2]
[353235497,1739695839748,-14615.64363429,0.0001,2]
[353235498,1739695839854,-1702.5225,0.0001,2]
[353235519,1739695842720,-1764.09695905,0.0001,2]
[353235520,1739695842743,-45244.15578551,0.0001,2]
[353235521,1739695842791,-4457.73202937,0.0001,2]
[353235529,1739695845414,-407.82269628,0.0001,2]
[353235530,1739695845425,-640517.2439721,0.0001,2]
[353235531,1739695845437,-2324.29556668,0.0001,2]
[353235532,1739695845519,-4794.10916932,0.0001,2]
[353235533,1739695845573,-6105.08002938,0.0001,2]
[353235534,1739695845627,-5031.75162077,0.0001,2]
[353235535,1739695845638,-281.8745621,0.0001,2]
[353235536,1739695845649,-324.84856144,0.0001,2]
[353235537,1739695845681,-7512.70143247,0.0001,2]
[353235549,1739695854434,1349.579,8.699e-05,2]
[353235550,1739696007178,784.35,8.219e-05,2]
[353235552,1739696078836,2243.0,0.00020355,120]
[353235553,1739696607460,250.0,0.00020349,120]
[353235562,1739697031795,-1152.36012021,8.836e-05,2]
[353235563,1739697031850,-271.84260582,8.836e-05,2]
[353235566,1739697037603,-1008.99495766,8.836e-05,2]
[353235567,1739697037658,-750.63961631,8.836e-05,2]
[353235568,1739697037668,-383.26038396,8.836e-05,2]
[353235569,1739697037679,-495.36351604,8.836e-05,2]
[353235570,1739697037689,-200.0,8.836e-05,2]
[353235571,1739697037698,-193.27016647,8.836e-05,2]
[353235572,1739697037708,-852.8409,8.851e-05,2]
[353235573,1739697037718,-4821.86047771,8.888e-05,2]
[353235574,1739697037736,-2912.571574,8.888e-05,2]
[353235593,1739697039791,-1072.16883043,8.888e-05,2]
[353235594,1739697039860,-26.37219745,8.888e-05,2]
[353235595,1739697039904,-292.79125015,8.888e-05,2]
[353235866,1739697042887,-9.4112,8.888e-05,2]
[353235867,1739697042934,-389.11154889,8.888e-05,2]
[353235908,1739697045564,-8343.65108953,8.888e-05,2]
[353235909,1739697045720,-3500.73183184,8.888e-05,2]
[353235910,1739697045730,-2607.22247143,8.973e-05,2]
[353235911,1739697045878,-500.0,8.973e-05,2]
[353235913,1739697057961,807.76,8.219e-05,2]
[353235918,1739697577706,550.77,8.768e-05,2]
[353235919,1739697614112,200.0,8.774e-05,2]
[353235920,1739697722684,1609.88,8.654e-05,2]
[353235921,1739697722892,1609.88,8.656e-05,2]
[353235922,1739697723090,1609.88,8.659e-05,2]
[353235923,1739697723287,1609.88,8.661e-05,2]
[353235924,1739697723487,1609.88,8.663e-05,2]
[353235925,1739697723697,1609.88,8.665e-05,2]
[353235926,1739697723907,1609.88,8.668e-05,2]
[353235927,1739697724312,1609.88,8.67e-05,2]
[353235928,1739697724521,1609.88,8.672e-05,2]
[353235929,1739697724732,1609.88,8.675e-05,2]
[353235930,1739697724940,1609.88,8.677e-05,2]
[353235931,1739697725353,1609.88,8.679e-05,2]
[353235932,1739697725559,1609.88,8.681e-05,2]
[353235933,1739697725813,1609.88,8.684e-05,2]
[353235934,1739697725994,1609.88,8.686e-05,2]
[353235935,1739697726191,1609.88,8.688e-05,2]
[353235936,1739697726395,1609.88,8.69e-05,2]
[353235937,1739697726587,1609.88,8.693e-05,2]
[353235938,1739697726789,1609.88,8.695e-05,2]
[353235939,1739697727005,1609.88,8.697e-05,2]
[353235940,1739697842366,804.52,8.672e-05,2]
[353235941,1739697845181,889.9,8.672e-05,2]
[353235942,1739697927159,23900.0,8.567e-05,2]
[353235943,1739697979120,1500.0,8.553e-05,2]
[353235950,1739698182222,500.0,8.588e-05,2]
[353235965,1739698231845,-200.0,8.853e-05,2]
[353235966,1739698231854,-350.99707701,8.854e-05,2]
[353235967,1739698231900,-1649.00292299,8.854e-05,2]
[353235968,1739698231910,-240.06139752,8.858e-05,2]
[353235969,1739698231920,-842.64,8.858e-05,2]
[353235970,1739698231930,-2257.83277649,8.874e-05,2]
[353235971,1739698231939,-1000.0,8.874e-05,2]
[353235972,1739698231948,-250.0,8.884e-05,2]
[353235973,1739698231958,-647.96,8.902e-05,2]
[353235974,1739698231967,-2633.1866,8.973e-05,2]
[353235975,1739698231976,-300.0,8.995e-05,2]
[353235976,1739698231986,-1678.09,8.996e-05,2]
[353235977,1739698231995,-150.0,9e-05,2]
[353235978,1739698232004,-150.0,9e-05,2]
[353235979,1739698232013,-150.0,9e-05,2]
[353235980,1739698232023,-239.36,9e-05,2]
[353235981,1739698232032,-300.0,9e-05,2]
[353235982,1739698232041,-885.51,9e-05,2]
[353235983,1739698232050,-160.0,9.028e-05,2]
[353235984,1739698232060,-180.29,9.03e-05,2]
[353235985,1739698232069,-150.0,9.038e-05,2]
[353235986,1739698232078,-150.0,9.077e-05,2]
[353235987,1739698232087,-150.0,9.115e-05,2]
[353235988,1739698232096,-150.0,9.154e-05,2]
[353235989,1739698232105,-150.0,9.192e-05,2]
[353235990,1739698232114,-150.0,9.231e-05,2]
[353235991,1739698232123,-415.87832048,9.266e-05,2]
[353235992,1739698232132,-150.0,9.269e-05,2]
[353235993,1739698232141,-150.0,9.308e-05,2]
[353235994,1739698232150,-150.0,9.346e-05,2]
[353235995,1739698232159,-150.0,9.385e-05,2]
[353235996,1739698232168,-150.0,9.423e-05,2]
[353235997,1739698232177,-150.0,9.423e-05,2]
[353235999,1739698232186,-150.0,9.462e-05,2]
[353236001,1739698232195,-150.0,9.5e-05,2]
[353236003,1739698232204,-150.0,9.5e-05,2]
[353236004,1739698232213,-150.0,9.5e-05,2]
[353236006,1739698232222,-300.0,9.5e-05,3]
[353236008,1739698232231,-415.87832048,9.518e-05,2]
[353236010,1739698232241,-160.0,9.524e-05,2]
[353236012,1739698232250,-150.0,9.538e-05,2]
[353236014,1739698232259,-500.0,9.562e-05,2]
[353236016,1739698232268,-150.0,9.577e-05,2]
[353236018,1739698232277,-700.0,9.6e-05,3]
[353236020,1739698232286,-150.0,9.615e-05,2]
[353236022,1739698232295,-150.0,9.654e-05,2]
[353236024,1739698232305,-150.0,9.692e-05,2]
[353236026,1739698232314,-1100.0,9.7e-05,3]
[353236028,1739698232323,-150.0,9.731e-05,2]
[353236030,1739698232332,-5582.0,9.731e-05,2]
[353236033,1739698232341,-200.0,9.736e-05,2]
[353236036,1739698232351,-200.0,9.737e-05,2]
[353236038,1739698232359,-150.0,9.769e-05,2]
[353236040,1739698232368,-1500.0,9.8e-05,3]
[353236042,1739698232377,-150.0,9.808e-05,2]
[353236044,1739698232386,-150.0,9.846e-05,2]
[353236046,1739698232395,-415.87832048,9.854e-05,2]
[353236048,1739698232404,-2500.0,9.879e-05,2]
[353236050,1739698232414,-2500.0,9.879e-05,2]
[353236052,1739698232423,-150.0,9.885e-05,2]
[353236054,1739698232431,-420.0,9.895e-05,2]
[353236056,1739698232440,-1800.0,9.9e-05,3]
[353236058,1739698232449,-150.0,9.923e-05,2]
[353236060,1739698232458,-390.86567606,9.925e-05,2]
[353236061,1739698232467,-4926.221,9.945e-05,2]
[353236062,1739698232476,-902.30192603,9.949e-05,2]
[353236063,1739698232487,-870.61607397,9.949e-05,2]
[353236064,1739698232496,-899.06977853,9.949e-05,2]
[353236077,1739698232660,-150.0,9.962e-05,2]
[353236080,1739698232682,-842.64,9.966e-05,2]
[353236082,1739698232691,-390.86567606,9.969e-05,2]
[353236084,1739698232701,-200.0,9.97e-05,2]
[353236086,1739698232711,-690.22670659,9.971e-05,2]
[353236088,1739698232720,-500.30323679,9.972e-05,2]
[353236090,1739698232730,-500.0,9.972e-05,2]
[353236092,1739698232739,-213.60257561,9.972e-05,2]
[353236094,1739698232748,-500.0,9.972e-05,2]
[353236096,1739698232757,-582.30574504,9.972e-05,2]
[353236098,1739698232767,-500.0,9.972e-05,2]
[353236100,1739698232776,-20659.79537107,9.972e-05,2]
[353236102,1739698232786,-259.85397364,9.973e-05,2]
[353236104,1739698232796,-501.4822683,9.973e-05,2]
[353236106,1739698232805,-501.86359877,9.973e-05,2]
[353236108,1739698232815,-377006.7122979,9.973e-05,2]
[353236110,1739698232824,-200.0,9.974e-05,2]
[353236112,1739698232833,-2340.25647074,9.978e-05,2]
[353236114,1739698232843,-390.86567606,9.978e-05,2]
[353236116,1739698232853,-232087.07189214,9.979e-05,2]
[353236118,1739698232862,-492081.64323893,9.98e-05,2]
[353236120,1739698232871,-189.66143059,9.98e-05,2]
[353236122,1739698232880,-1000.0,9.984e-05,2]
[353236124,1739698232890,-390.86567606,9.991e-05,2]
[353236126,1739698232899,-1223.81,9.999e-05,2]
[353236128,1739698232909,-1478.0,0.0001,2]
[353236130,1739698232921,-963076.82450753,0.0001,2]
[353236132,1739698232930,-1111010.37147198,0.0001,2]
[353236134,1739698232939,-32085.77808899,0.0001,2]
[353236136,1739698232948,-219.05072277,0.0001,2]
[353236138,1739698232958,-397.43223989,0.0001,2]
[353236139,1739698232969,-424.78810549,0.0001,2]
[353236141,1739698232979,-1596969.21984814,0.0001,2]
[353236147,1739698233021,-500.0,9.972e-05,2]
[353236149,1739698233031,-500.0,9.972e-05,2]
[353236151,1739698233042,-68502.65715522,0.0001,2]
[353236153,1739698233053,-2813.51741713,0.0001,2]
[353236159,1739698233097,-500.0,9.972e-05,2]
[353236161,1739698233107,-500.0,9.972e-05,2]
[353236163,1739698233116,-2963.04,0.0001,2]
[353236167,1739698233150,-2400.0,0.0001,2]
[353236169,1739698233161,-4053.66064304,0.0001,2]
[353236171,1739698233173,-2139.23480222,0.0001,2]
[353236211,1739698237797,-240.06139752,9.416e-05,2]
[353236212,1739698237807,-177.39221525,9.972e-05,2]
[353236213,1739698237872,-322.60778475,9.972e-05,2]
[353236214,1739698237881,-500.0,9.972e-05,2]
[353236215,1739698237890,-177.34435965,9.972e-05,2]
[353236216,1739698239963,-1259.34392676,8.858e-05,2]
[353236217,1739698240075,-94.18425471,8.858e-05,2]
[353236218,1739698240085,-322.65564035,9.972e-05,2]
[353236219,1739698240096,-69.79586313,9.972e-05,2]
[353236220,1739698240133,-269.93,9.972e-05,2]
[353236221,1739698240145,-160.27413687,9.972e-05,2]
[353236222,1739698240154,-133.57430931,9.972e-05,2]
[353236488,1739698243006,-366.42569069,9.972e-05,2]
[353236490,1739698243015,-500.0,9.972e-05,2]
[353236491,1739698243024,-1334.0,0.0001,2]
[353236493,1739698243033,-544.37440108,0.0001,2]
[353236509,1739698243173,-253.44000023,0.0001,2]
[353236638,1739698245872,-452.17031949,9.8e-05,2]
[353236639,1739698246011,-649.19999994,9.8e-05,2]
[353236641,1739698283897,767.37,8.219e-05,2]
[353236653,1739699106677,150.0,8.729e-05,2]
[353236654,1739699109841,150.00000001,8.729e-05,2]
[353236655,1739699113676,150.0,8.729e-05,2]
[353236656,1739699129456,243.07,8.629e-05,2]
[353236657,1739699129664,243.07,8.631e-05,2]
[353236658,1739699129866,243.07,8.634e-05,2]
[353236659,1739699130062,243.07,8.636e-05,2]
[353236660,1739699130311,243.07,8.638e-05,2]
[353236661,1739699130441,243.07,8.641e-05,2]
[353236662,1739699130633,243.07,8.643e-05,2]
[353236663,1739699130840,243.07,8.645e-05,2]
[353236664,1739699131034,243.07,8.647e-05,2]
[353236665,1739699131452,243.07,8.65e-05,2]
[353236666,1739699131652,243.07,8.652e-05,2]
[353236667,1739699132135,243.07,8.654e-05,2]
[353236668,1739699132230,243.07,8.656e-05,2]
[353236669,1739699132636,243.07,8.659e-05,2]
[353236670,1739699132833,243.07,8.661e-05,2]
[353236671,1739699133059,243.07,8.663e-05,2]
[353236672,1739699133270,243.07,8.666e-05,2]
[353236673,1739699133778,243.07,8.668e-05,2]
[353236674,1739699133835,243.07,8.67e-05,2]
[353236675,1739699134047,243.07,8.672e-05,2]
[353236676,1739699184241,-1500.0,8.828e-05,2]
[353236677,1739699355105,4723.93,8.687e-05,2]
[353236682,1739699411883,2000.0,8.651e-05,2]
[353236695,1739699431997,-832.4738,8.836e-05,2]
[353236696,1739699432008,-1102.1466,8.836e-05,2]
[353236697,1739699432018,-200.0,8.838e-05,2]
[353236698,1739699432027,-500.6032,8.851e-05,2]
[353236699,1739699432037,-200.0,8.903e-05,2]
[353236700,1739699432047,-1820.59,8.935e-05,2]
[353236701,1739699432056,-240.06139752,8.971e-05,2]
[353236702,1739699432066,-150.0,8.971e-05,2]
[353236703,1739699432075,-440.48,9.002e-05,2]
[353236704,1739699432084,-200.0,9.002e-05,2]
[353236705,1739699432093,-163.21,9.041e-05,2]
[353236706,1739699432103,-189.45,9.049e-05,2]
[353236707,1739699432112,-1000.0,9.08e-05,2]
[353236708,1739699432121,-250.0,9.117e-05,2]
[353236709,1739699432131,-242.6,9.172e-05,2]
[353236710,1739699432141,-150.0,9.214e-05,2]
[353236711,1739699432150,-300.0,9.453e-05,2]
[353236712,1739699432321,-245.95,9.454e-05,2]
[353236713,1739699432332,-150.0,9.456e-05,2]
[353236714,1739699432343,-500.0,9.562e-05,2]
[353236715,1739699432352,-713.45377928,9.675e-05,2]
[353236716,1739699432363,-156.83594988,9.699e-05,2]
[353236717,1739699432375,-150.0,9.699e-05,2]
[353236719,1739699432384,-500.0,9.699e-05,2]
[353236720,1739699432394,-500.0,9.699e-05,2]
[353236722,1739699432403,-500.0,9.699e-05,2]
[353236724,1739699432413,-383.48606212,9.699e-05,2]
[353236726,1739699432422,-150.0,9.699e-05,2]
[353236727,1739699432431,-15959.85380468,9.7e-05,2]
[353236729,1739699432444,-9656.99669849,9.7e-05,2]
[353236737,1739699432530,-319.87720466,9.7e-05,2]
[353236739,1739699432545,-712.79842,9.7e-05,2]
[353236741,1739699432556,-759.45939,9.7e-05,2]
[353236743,1739699432567,-1056.39,9.7e-05,2]
[353236745,1739699432585,-101222.90534286,9.7e-05,2]
[353236747,1739699432595,-3881.83234967,9.7e-05,2]
[353236748,1739699432632,-43010.79713,9.7e-05,2]
[353237174,1739699437959,-96930.36936503,9.7e-05,2]
[353237177,1739699440028,-250.48105324,9.7e-05,2]
[353237178,1739699440243,-135205.11175019,9.7e-05,2]
[353237179,1739699440351,-972.7316598,9.7e-05,2]
[353237222,1739699446275,-4294.11711293,9.7e-05,2]
[353237224,1739699559072,792.56,8.219e-05,2]
[353237227,1739700057366,-220.24,9.138e-05,2]
[353237228,1739700101013,1500.0,9.128e-05,2]
[353237229,1739700308506,150.0,8.729e-05,2]
[353237235,1739700371389,273.2,8.973e-05,2]
[353237236,1739700451145,-200.0,9.172e-05,2]
[353237237,1739700451170,-150.0,9.178e-05,2]
[353237238,1739700451401,-505.58,9.192e-05,2]
[353237239,1739700451428,-1000.0,9.2e-05,2]
[353237240,1739700451455,-250.0,9.274e-05,2]
[353237241,1739700451480,-150.0,9.302e-05,2]
[353237242,1739700451505,-500.0,9.562e-05,2]
[353237243,1739700451529,-2500.0,9.68e-05,2]
[353237244,1739700451555,-2500.0,9.68e-05,2]
[353237245,1739700451578,-582.13903436,9.698e-05,2]
[353237246,1739700451602,-2592.43,9.698e-05,2]
[353237247,1739700451626,-257.49677559,9.698e-05,2]
[353237248,1739700451650,-150.0,9.698e-05,2]
[353237249,1739700451675,-440.1,9.699e-05,2]
[353237250,1739700451701,-8222.25419005,9.699e-05,2]
[353237251,1739700518403,-200.0,9.699e-05,2]
[353237252,1739700518427,-41966.65478307,9.699e-05,2]
[353237253,1739700518452,-500.0,9.699e-05,2]
[353237254,1739700518478,-500.0,9.699e-05,2]
[353237255,1739700518502,-479.45409962,9.699e-05,2]
[353237256,1739700518526,-1193.65,9.699e-05,2]
[353237257,1739700518549,-671.62157948,9.699e-05,2]
[353237258,1739700518573,-1195.0,9.7e-05,2]
[353237259,1739700518596,-15293.61953783,9.7e-05,2]
[353237260,1739700525038,2856.56,8.836e-05,2]
[353237261,1739700536600,-2930.0,8.836e-05,2]
[353237264,1739700632160,-1.401,8.836e-05,2]
[353237265,1739700632174,-250.0,9.235e-05,2]
[353237266,1739700632187,-150.0,9.699e-05,2]
[353237267,1739700632200,-556.11736468,9.699e-05,2]
[353237268,1739700632212,-300.0,9.699e-05,2]
[353237269,1739700632224,-1076.0,9.7e-05,2]
[353237270,1739700632237,-2524.86673481,9.7e-05,2]
[353237271,1739700632251,-811.8873891,9.7e-05,2]
[353237272,1739700632271,-360.4367498,9.7e-05,2]
[353237273,1739700632286,-1865.69249295,9.7e-05,2]
[353237274,1739700632350,-62232.97715329,9.7e-05,2]
[353237275,1739700632383,-555.90330277,9.7e-05,2]
[353237276,1739700632398,-18928.81618522,9.7e-05,2]
[353237277,1739700632413,-1273.3784205,9.7e-05,2]
[353237278,1739700632427,-450.653,9.7e-05,2]
[353237279,1739700632463,-385.1781132,9.7e-05,2]
[353237281,1739700632498,-36911.29109542,9.7e-05,2]
[353237831,1739700638052,-970.0,9.7e-05,2]
[353237834,1739700638062,-301.86879518,9.7e-05,2]
[353237837,1739700638074,-4001.88289112,9.7e-05,2]
[353237841,1739700638085,-375248.16738588,9.7e-05,2]
[353237852,1739700638169,-11043.07055058,9.7e-05,2]
[353237865,1739700638287,-1954.62114131,9.7e-05,2]
[353237869,1739700638313,-1004.48226134,9.7e-05,2]
[353237871,1739700638325,-735.15365519,9.7e-05,2]
[353237874,1739700638337,-918.84764387,9.7e-05,2]
[353238047,1739700640150,-146056.44600005,9.7e-05,2]
[353238126,1739700641309,-9390.0,9.7e-05,2]
[353238130,1739700641335,-750124.39377058,9.7e-05,2]
[353238132,1739700641347,-119774.93347008,9.7e-05,2]
[353238134,1739700641359,-8158.28400002,9.7e-05,2]
[353238138,1739700641388,-3937.18723596,9.7e-05,2]
[353238141,1739700641400,-407.61460824,9.7e-05,2]
[353238143,1739700641411,-27726.58756518,9.7e-05,2]
[353238244,1739700643192,-2454.21,9.7e-05,2]
[353238258,1739700643300,-1912.57660473,9.7e-05,2]
[353238279,1739700646097,-2918.07267775,9.7e-05,2]
[353238280,1739700646108,-816.7285356,9.7e-05,2]
[353238281,1739700646156,-8101.5530366,9.7e-05,2]
[353238282,1739700646167,-4863.80895001,9.7e-05,2]
[353238283,1739700646178,-2370.0,9.7e-05,2]
[353238284,1739700646192,-473.60559064,9.7e-05,2]
[353238285,1739700646478,-867.0,9.7e-05,2]
[353238286,1739700646488,-2882.72628695,9.7e-05,2]
[353238287,1739700646499,-536.41,9.7e-05,2]
[353238288,1739700646518,-727.73018671,9.7e-05,2]
[353238295,1739700694225,883.71,8.219e-05,2]
[353238296,1739700934175,-5000.0,8.836e-05,2]
[353238297,1739700967886,-1214.0,8.836e-05,2]
[353238299,1739701001535,-1493.0,8.836e-05,2]
[353238300,1739701223637,189.45,8.796e-05,2]
[353238308,1739701358145,151.71,6.995e-05,2]
[353238309,1739701468770,23900.0,8.806e-05,2]